bitfinex-derivatives/quotes_ETHF0:USTF0_20240904
["timestamp","ask_amount","ask_price","bid_price","bid_amount"]
[1725447206752,0.41839,2390.3,2390.1,0.4184]
[1725447206955,0.41839,2390.3,2390.2,0.3658]
[1725447208956,3.2078,2390.4,2390.2,0.3658]
[1725447208957,3.62616,2390.4,2390.2,0.3658]
[1725447209152,3.2078,2390.4,2390.3,0.41837]
[1725447209355,3.63236117,2390.9,2390.6,0.41832]
[1725447209663,0.80149,2390.8,2390.6,0.41832]
[1725447209961,0.80149,2390.8,2390.3,3.9779]
[1725447209962,0.41834,2390.6,2390.3,0.3679]
[1725447210164,0.41834,2390.5,2390.3,0.78627]
[1725447210463,0.41833,2390.6,2390.3,0.78627]
[1725447210663,0.80149,2390.8,2390.3,3.9779]
[1725447210963,0.41829,2390.8,2390.6,0.41831]
[1725447211163,3.21407117,2390.9,2390.7,0.7799]
[1725447211164,3.63235117,2390.9,2390.7,0.7799]
[1725447211464,3.21407117,2390.9,2390.7,0.3616]
[1725447211760,0.00627117,2390.9,2390.8,0.41829]
[1725447211961,0.00627117,2390.9,2390.8,1.16269]
[1725447212153,0.00627117,2390.9,2390.8,0.7444]
[1725447212357,0.00627117,2390.9,2390.8,1.16269]
[1725447212561,0.00627117,2390.9,2390.8,0.7444]
[1725447212760,0.00627117,2390.9,2390.8,1.16269]
[1725447213163,0.00627117,2390.9,2390.8,0.7444]
[1725447214464,0.00627117,2390.9,2390.8,1.16269]
[1725447214763,0.00627117,2390.9,2390.8,5.34509]
[1725447215858,0.42454117,2390.9,2390.8,0.7444]
[1725447216165,0.41833,2390.6,2390.3,0.41836]
[1725447216367,0.41833,2390.6,2390.4,0.3772]
[1725447216668,0.7725,2390.8,2390.5,0.41833]
[1725447216858,0.00627117,2390.9,2390.4,0.3772]
[1725447217060,0.42455117,2390.9,2390.7,0.4183]
[1725447217260,0.42455117,2390.9,2390.8,0.3814]
[1725447218368,3.63235117,2390.9,2390.8,0.3814]
[1725447218873,0.00627117,2390.9,2390.8,0.3814]
[1725447219172,0.00627117,2390.9,2390.8,0.7495]
[1725447219173,0.42454117,2390.9,2390.8,0.7495]
[1725447219468,0.42454117,2390.9,2390.8,0.3814]
[1725447220862,0.00627117,2390.9,2390.8,0.79969]
[1725447226875,3.5268,2391.3,2391.2,0.41822]
[1725447227078,1.0454,2391.6,2391.1,1.04558]
[1725447227079,0.41816,2391.6,2391.1,1.04558]
[1725447227271,0.41816,2391.6,2391.2,0.7495]
[1725447227472,0.41816,2391.6,2391.4,0.41817]
[1725447227681,0.41816,2391.5,2391.4,0.41817]
[1725447229879,0.41816,2391.6,2391.5,0.41816]
[1725447230078,0.41817,2391.5,2391.4,0.41817]
[1725447231082,0.41818,2391.4,2391.3,0.3752]
[1725447231277,1.4637,2391.3,2391.2,0.00627117]
[1725447231477,4.6715,2391.3,2391.2,0.00627117]
[1725447240584,5.717,2391.3,2391.2,0.00627117]
[1725447240886,5.717,2391.3,2389.7,4.102]
[1725447240887,1.46419,2390.5,2390.4,0.209]
[1725447241087,0.41841,2390.1,2389.9,0.79123]
[1725447241387,0.41841,2390.1,2389.9,0.79124]
[1725447241687,0.41842,2390.1,2389.9,0.79124]
[1725447241888,0.41843,2390.0,2389.9,0.79124]
[1725447242091,0.41842,2390.1,2389.9,0.79124]
[1725447242283,0.41842,2390.1,2389.8,0.00627117]
[1725447242284,0.41844,2389.9,2389.8,0.00627117]
[1725447242786,0.41842,2390.1,2389.9,0.41844]
[1725447242991,0.41842,2390.1,2390.0,0.3825]
[1725447243285,0.41842,2390.1,2390.0,0.7426]
[1725447243485,0.00627117,2390.2,2390.1,0.41841]
[1725447243892,0.00627117,2390.2,2390.0,0.3825]
[1725447243893,0.41841,2390.1,2390.0,0.3825]
[1725447245886,0.38687117,2390.2,2390.1,0.41841]
[1725447246187,0.42466117,2390.2,2390.0,0.80091]
[1725447246380,0.41841,2390.1,2390.0,0.3825]
[1725447246989,0.41844,2390.0,2389.8,0.00627117]
[1725447247189,0.79884,2389.9,2389.8,0.00627117]
[1725447247484,0.42466117,2390.2,2390.0,0.41842]
[1725447247683,0.00627117,2390.2,2390.1,0.79791]
[1725447247881,0.00627117,2390.2,2390.1,0.3795]
[1725447248082,0.00627117,2390.2,2390.1,0.79791]
[1725447249286,0.00627117,2390.2,2390.1,0.3795]
[1725447249687,0.42466117,2390.2,2390.1,0.3795]
[1725447250191,1.47064117,2390.2,2390.1,0.3795]
[1725447250393,0.41843,2390.0,2389.8,0.42473117]
[1725447250697,0.41843,2390.0,2389.8,0.80733117]
[1725447252497,0.41842,2390.1,2389.8,0.80733117]
[1725447252694,0.00627117,2390.2,2389.9,0.41844]
[1725447252894,0.41841,2390.1,2389.9,0.41844]
[1725447253191,0.00627117,2390.2,2389.9,7.794]
[1725447253493,0.00627117,2390.2,2390.1,0.41841]
[1725447254194,0.42468117,2390.2,2390.0,0.80632]
[1725447254393,0.41841,2390.1,2390.0,0.3879]
[1725447254597,0.42467117,2390.2,2390.0,0.80633]
[1725447254798,0.00627117,2390.2,2390.1,0.41841]
[1725447255397,0.00627117,2390.2,2390.1,4.60241]
[1725447257394,0.00627117,2390.2,2390.1,0.41841]
[1725447257589,0.00627117,2390.2,2390.1,4.60241]
[1725447258200,0.00627117,2390.2,2390.1,0.41841]
[1725447258499,0.42467117,2390.2,2390.0,0.3879]
[1725447258700,0.00627117,2390.2,2390.1,0.41841]
[1725447259098,0.00627117,2390.2,2390.1,4.60241]
[1725447259397,0.00627117,2390.2,2390.0,0.3879]
[1725447259599,0.00627117,2390.2,2390.0,0.80632]
[1725447259600,0.42467117,2390.2,2390.0,0.80632]
[1725447260202,0.00627117,2390.2,2389.8,0.38887117]
[1725447260500,0.42468117,2390.2,2390.0,0.41843]
[1725447260702,0.41841,2390.1,2389.9,0.41843]
[1725447261197,0.42467117,2390.2,2390.0,0.41843]
[1725447261501,0.41841,2390.1,2389.9,0.41843]
[1725447261701,0.00627117,2390.2,2390.0,0.41842]
[1725447261997,0.00627117,2390.2,2390.1,0.41841]
[1725447262502,0.42466117,2390.2,2390.1,0.41841]
[1725447262702,0.00627117,2390.2,2390.1,0.41841]
[1725447262999,0.00627117,2390.2,2389.9,0.41844]
[1725447263299,0.41844,2390.0,2389.8,0.80732117]
[1725447263692,0.41844,2390.0,2389.9,4.184]
[1725447263898,1.43516117,2390.2,2389.9,4.184]
[1725447264104,0.41841,2390.1,2389.9,0.41844]
[1725447264299,0.41843,2390.0,2389.9,0.41844]
[1725447264498,1.43516117,2390.2,2389.9,0.41844]
[1725447265095,0.41841,2390.1,2389.9,0.41844]
[1725447265400,0.41843,2390.0,2389.8,0.80732117]
[1725447265710,0.41843,2390.0,2389.9,0.41844]
[1725447265898,0.41844,2389.9,2389.8,0.38887117]
[1725447266296,0.41844,2389.9,2389.8,0.80733117]
[1725447266701,0.41844,2389.9,2389.8,0.38887117]
[1725447268318,0.80757117,2390.2,2390.0,0.41842]
[1725447268611,0.41841,2390.1,2389.9,4.02843]
[1725447269008,0.41841,2390.1,2390.0,0.41842]
[1725447269227,0.41841,2390.1,2389.9,3.61]
[1725447269416,0.41841,2390.1,2390.0,0.41843]
[1725447269807,0.41843,2390.0,2389.9,4.02843]
[1725447270420,0.41843,2390.0,2389.9,8.21243]
[1725447270710,0.41844,2389.9,2389.8,0.80733117]
[1725447270911,0.41844,2389.9,2389.8,0.38887117]
[1725447271208,0.41844,2389.9,2389.8,0.80733117]
[1725447271614,0.41844,2389.9,2389.8,0.38887117]
[1725447272813,0.41844,2389.9,2389.8,0.80733117]
[1725447273116,0.41844,2389.9,2389.8,0.38887117]
[1725447274319,0.41844,2389.9,2389.8,0.80733117]
[1725447274513,0.41844,2389.9,2389.8,0.38887117]
[1725447275513,0.41844,2389.9,2389.8,0.80733117]
[1725447279816,0.41844,2389.9,2389.8,0.42473117]
[1725447282827,1.46456,2389.9,2389.8,0.00627117]
[1725447283031,2.51068,2389.9,2389.8,0.00627117]
[1725447283325,2.87968,2389.9,2389.8,0.00627117]
[1725447287226,0.78744,2389.9,2389.8,0.00627117]
[1725447287723,2.87968,2389.9,2389.8,0.00627117]
[1725447287925,0.41851,2389.5,2389.4,0.365]
[1725447288331,0.79131,2389.6,2389.5,0.41851]
[1725447289022,0.41851,2389.5,2389.4,0.78352]
[1725447289223,0.79131,2389.6,2389.4,0.78352]
[1725447289422,0.41851,2389.5,2389.4,0.78352]
[1725447290124,0.79131,2389.6,2389.5,0.41851]
[1725447291325,0.41849,2389.7,2389.6,0.41849]
[1725447294032,0.4185,2389.6,2389.5,0.4185]
[1725447294329,4.25397,2389.8,2389.4,0.365]
[1725447294330,0.41851,2389.5,2389.4,0.78353]
[1725447294635,0.41855,2389.4,2389.2,0.41855]
[1725447294829,0.80125,2389.4,2389.2,0.78285]
[1725447295025,0.41855,2389.3,2389.2,0.3643]
[1725447295220,0.80425,2389.3,2389.2,0.78287]
[1725447295426,0.80425,2389.3,2389.2,0.41857]
[1725447296622,0.80425,2389.3,2389.0,0.7291]
[1725447296832,0.80426,2389.3,2389.1,0.41858]
[1725447297128,0.80426,2389.3,2389.2,0.41857]
[1725447298530,0.41857,2389.2,2389.1,0.41858]
[1725447298731,0.80426,2389.3,2389.2,0.41857]
[1725447299122,0.80426,2389.3,2389.0,0.7291]
[1725447299437,0.80426,2389.3,2389.2,0.41857]
[1725447300135,0.41857,2389.2,2389.1,0.41857]
[1725447300433,1.19166,2389.3,2389.2,0.41857]
[1725447300629,0.3827,2389.4,2389.2,0.41857]
[1725447300929,0.41855,2389.3,2389.2,0.41857]
[1725447301635,1.04621,2389.7,2389.1,1.41766]
[1725447301934,2.34709313,2390.1,2389.1,1.41766]
[1725447301935,3.2078,2390.1,2389.6,4.65622]
[1725447302230,0.41846,2389.9,2389.8,0.41845]
[1725447302621,0.41844,2390.0,2389.9,0.41844]
[1725447302929,4.25383,2390.1,2389.8,0.41845]
[1725447302930,0.41845,2389.9,2389.8,0.41845]
[1725447303730,0.41844,2390.0,2389.9,0.41844]
[1725447303943,0.41844,2389.9,2389.8,0.41845]
[1725447304234,0.41845,2389.9,2389.8,0.41845]
[1725447304435,0.41846,2389.8,2389.7,1.15176]
[1725447304636,0.41845,2389.9,2389.8,0.41845]
[1725447305033,0.41842,2390.1,2390.0,0.41842]
[1725447305229,0.41843,2390.0,2389.9,0.41843]
[1725447305627,0.41845,2389.9,2389.8,0.41845]
[1725447305833,1.04603,2390.1,2389.9,0.41843]
[1725447305834,0.41844,2390.0,2389.9,0.41843]
[1725447306134,0.41843,2390.0,2389.9,0.41843]
[1725447307331,0.41842,2390.1,2390.0,0.41841]
[1725447307742,3.21407117,2390.2,2390.1,0.41841]
[1725447307936,0.00627117,2390.2,2390.1,0.41841]
[1725447308237,0.42466117,2390.2,2390.1,0.41841]
[1725447311036,0.00627117,2390.2,2390.1,0.41841]
[1725447312243,3.2078,2390.5,2390.0,6.8178]
[1725447312445,0.3879,2390.9,2390.8,0.41829]
[1725447312638,0.41829,2390.8,2390.7,0.41829]
[1725447313144,0.80618,2390.9,2390.8,0.41829]
[1725447313441,0.41829,2390.8,2390.7,0.41829]
[1725447314237,0.80618,2390.9,2390.8,0.41829]
[1725447315150,0.41827,2391.0,2390.8,0.41829]
[1725447315445,0.41827,2391.0,2390.9,0.41826]
[1725447315446,0.41826,2391.0,2390.9,0.41826]
[1725447316536,0.42452117,2391.1,2390.9,0.41826]
[1725447317046,0.41825,2391.0,2390.8,0.41828]
[1725447317248,0.3755,2390.9,2390.7,3.61]
[1725447317545,0.4183,2390.7,2390.6,0.00627117]
[1725447318045,0.41829,2390.8,2390.7,0.4183]
[1725447318346,0.3755,2390.9,2390.6,0.42458117]
[1725447318534,0.41829,2390.8,2390.6,0.42458117]
[1725447318939,0.41827,2390.9,2390.7,0.41829]
[1725447319343,0.3755,2391.0,2390.6,0.42458117]
[1725447319344,0.41829,2390.8,2390.6,0.42458117]
[1725447320048,3.2078,2391.0,2390.9,0.41827]
[1725447320246,0.79341117,2391.1,2390.7,3.61]
[1725447320447,0.41827,2390.9,2390.8,0.80407]
[1725447320635,1.42076117,2391.1,2390.8,0.80407]
[1725447320952,0.37517117,2391.1,2390.8,0.3858]
[1725447321250,0.4183,2390.7,2390.6,0.00627117]
[1725447321642,0.7785,2390.7,2390.6,0.00627117]
[1725447322139,0.4183,2390.7,2390.6,0.00627117]
[1725447322750,0.4183,2390.7,2390.6,0.42459117]
[1725447323951,0.41827,2390.9,2390.8,0.41828]
[1725447324744,0.41827,2390.9,2390.7,0.41829]
[1725447325547,0.41829,2390.8,2390.7,0.41829]
[1725447325945,0.41828,2390.9,2390.8,0.41829]
[1725447326348,0.41829,2390.8,2390.7,0.41829]
[1725447326755,1.46407,2390.7,2390.6,0.00627117]
[1725447328447,0.4183,2390.7,2390.6,0.00627117]
[1725447328751,0.4183,2390.7,2390.6,0.42459117]
[1725447328950,4.25357,2390.7,2390.6,0.00627117]
[1725447329150,9.90084,2390.7,2390.6,0.00627117]
[1725447329342,1.04597,2390.3,2390.0,0.3602]
[1725447329549,0.41841,2390.1,2390.0,0.3602]
[1725447330047,0.3839,2390.1,2390.0,0.77863]
[1725447330746,0.80231,2390.1,2390.0,0.3602]
[1725447330948,0.80231,2390.1,2390.0,0.77863]
[1725447330949,0.3839,2390.1,2390.0,0.77863]
[1725447331746,0.80231,2390.1,2390.0,0.77863]
[1725447336555,0.80231,2390.1,2390.0,0.3602]
[1725447336759,1.84834,2390.1,2390.0,0.3602]
[1725447337558,0.80231,2390.1,2390.0,0.77863]
[1725447337952,0.41841,2390.2,2390.1,0.4184]
[1725447338456,0.3757,2390.5,2390.1,4.184]
[1725447338759,0.3757,2390.5,2390.4,0.41836]
[1725447339066,0.41834,2390.6,2390.5,0.41833]
[1725447339261,0.41835,2390.5,2390.4,0.41834]
[1725447339455,0.41833,2390.6,2390.5,0.41832]
[1725447340761,0.41836,2390.5,2390.4,0.41834]
[1725447341452,1.04594,2390.3,2390.1,0.4184]
[1725447341660,0.41842,2390.1,2390.0,0.41841]
[1725447341956,0.41843,2390.0,2389.9,0.81033]
[1725447346573,0.41842,2390.1,2390.0,0.41841]
[1725447346760,0.3744,2390.2,2390.1,0.41838]
[1725447346761,0.4184,2390.2,2390.1,0.41838]
[1725447349862,0.41839,2390.3,2390.2,0.41837]
[1725447351962,0.41839,2390.3,2390.2,3.62617]
[1725447353562,1.40196,2390.5,2390.2,3.62617]
[1725447353763,0.41837,2390.4,2390.3,0.41836]
[1725447353961,0.77445,2390.5,2390.4,0.41836]
[1725447354667,1.8203,2390.5,2390.4,0.41836]
[1725447355469,0.77445,2390.5,2390.4,0.41836]
[1725447356265,0.41832,2390.7,2390.3,1.04591]
[1725447356563,0.41832,2390.7,2390.6,0.41831]
[1725447356960,4.60152,2390.7,2390.6,0.41831]
[1725447357161,0.41832,2390.7,2390.6,0.41831]
[1725447358765,0.41832,2390.6,2390.5,0.78352]
[1725447361377,0.41837,2390.3,2390.2,3.62617]
[1725447361591,0.41837,2390.3,2390.2,5.13617]
[1725447361772,1.46437,2390.2,2390.1,1.8701]
[1725447364175,1.46437,2390.2,2390.1,2.28851]
[1725447364579,0.41839,2390.2,2390.1,2.28851]
[1725447365177,0.41839,2390.2,2390.1,1.8701]
[1725447365481,0.41839,2390.2,2390.1,1.51]
[1725447365482,1.46437,2390.2,2390.1,1.51]
[1725447366376,1.46437,2390.2,2390.1,1.92841]
[1725447366771,0.41839,2390.2,2390.1,1.92841]
[1725447367380,1.04581,2390.6,2390.2,1.04598]
[1725447367684,1.04581,2390.6,2390.4,0.41835]
[1725447367685,0.41835,2390.5,2390.4,0.41835]
[1725447371078,1.15493,2390.6,2390.5,0.41834]
[1725447372173,0.3759,2390.6,2390.5,0.41834]
[1725447372684,0.79422,2390.6,2390.5,1.92834]
[1725447373883,1.46426,2390.4,2390.3,0.3797]
[1725447374083,1.46426,2390.4,2390.1,3.2078]
[1725447374084,0.41839,2390.2,2390.1,3.2078]
[1725447374280,0.41842,2390.1,2390.0,0.41841]
[1725447374483,0.77632,2390.1,2390.0,0.41841]
[1725447379285,0.4184,2390.2,2390.1,0.41841]
[1725447379485,0.7552,2390.3,2390.0,1.51]
[1725447379679,0.41841,2390.1,2390.0,1.92841]
[1725447380080,0.4184,2390.2,2390.1,0.4184]
[1725447380380,0.41841,2390.1,2390.0,1.92841]
[1725447382289,0.3924,2390.3,2390.2,0.41839]
[1725447382486,4.57259,2390.7,2390.5,0.41832]
[1725447382487,0.41834,2390.6,2390.5,0.41832]
[1725447382678,0.41834,2390.6,2390.5,1.92832]
[1725447383390,0.41834,2390.6,2390.5,0.41832]
[1725447384797,4.0122,2390.8,2390.7,0.4183]
[1725447385297,0.41832,2390.7,2390.6,0.41831]
[1725447386392,4.0122,2390.8,2390.7,0.4183]
[1725447388786,3.2078,2390.8,2390.7,1.9283]
[1725447388991,0.41828,2390.9,2390.8,0.41829]
[1725447390681,0.41827,2391.0,2390.9,0.41825]
[1725447390882,3.63232117,2391.1,2391.0,0.41825]
[1725447391083,3.63232117,2391.1,2391.0,1.92825]
[1725447391084,0.00627117,2391.1,2391.0,1.92825]
[1725447391492,0.42450117,2391.1,2391.0,1.92825]
[1725447391690,0.00627117,2391.1,2391.0,1.92825]
[1725447392696,0.42450117,2391.1,2391.0,0.41825]
[1725447392995,0.79880117,2391.1,2391.0,0.41825]
[1725447395096,0.4183,2390.7,2390.6,0.41832]
[1725447395299,0.41833,2390.6,2390.5,1.51]
[1725447395990,0.41833,2390.6,2390.5,1.92834]
[1725447398805,0.41832,2390.7,2390.6,0.41831]
[1725447399108,0.41832,2390.7,2390.6,1.92831]
[1725447400001,0.41826,2391.0,2390.9,0.41825]
[1725447400201,3.63231117,2391.1,2391.0,0.41825]
[1725447400500,0.41827,2390.9,2390.8,2.31788]
[1725447401089,0.77327,2390.9,2390.8,0.80788]
[1725447402603,1.81895,2390.9,2390.8,0.3896]
[1725447402806,1.46401,2390.8,2390.7,1.51]
[1725447403198,1.46407,2390.7,2390.6,0.3766]
[1725447403397,1.04585,2390.6,2390.2,3.2078]
[1725447403598,0.41836,2390.4,2390.3,1.8866]
[1725447403999,0.41841,2390.1,2389.9,0.41843]
[1725447404207,0.41841,2390.1,2390.0,1.51]
[1725447405404,0.41841,2390.1,2390.0,1.92843]
[1725447406003,0.41841,2390.1,2390.0,4.03843]
[1725447409606,0.41841,2390.1,2390.0,3.62]
[1725447410005,0.81051,2390.1,2390.0,4.03843]
[1725447412406,0.41841,2390.1,2390.0,4.03843]
[1725447414510,1.04595,2390.3,2390.0,3.62]
[1725447414711,0.41843,2390.0,2389.9,0.79503]
[1725447415514,0.80713,2390.0,2389.9,0.79503]
[1725447417711,0.3887,2390.0,2389.9,0.79503]
[1725447417915,0.80713,2390.0,2389.9,0.79503]
[1725447422222,0.3887,2390.0,2389.9,0.79503]
[1725447423519,3.5268,2390.6,2389.9,10.5606]
[1725447423818,0.80082,2390.7,2390.6,0.4183]
[1725447424116,0.3825,2390.7,2390.6,0.4183]
[1725447424314,0.3825,2390.7,2390.6,0.7821]
[1725447424713,0.8008,2390.7,2390.6,0.7821]
[1725447424923,0.3825,2390.7,2390.6,0.7821]
[1725447425227,0.3825,2390.7,2390.6,0.3638]
[1725447425228,0.4183,2390.7,2390.6,0.3638]
[1725447425516,0.8008,2390.7,2390.6,0.3638]
[1725447425721,0.41834,2390.5,2390.4,3.2078]
[1725447426315,0.41833,2390.6,2390.5,0.41833]
[1725447427122,0.80082,2390.7,2390.6,0.41832]
[1725447427824,3.2078,2390.9,2390.8,0.41829]
[1725447428019,0.41829,2390.8,2390.7,0.41829]
[1725447428528,3.62608,2390.9,2390.8,0.41829]
[1725447428720,0.41828,2390.9,2390.8,0.41829]
[1725447429621,0.3804,2391.0,2390.9,0.41827]
[1725447430032,0.4183,2390.8,2390.7,0.4183]
[1725447430327,0.4183,2390.7,2390.6,0.3587]
[1725447430623,0.7825,2390.7,2390.6,0.77702]
[1725447431326,0.4183,2390.8,2390.7,0.4183]
[1725447431924,0.4183,2390.7,2390.6,0.77701]
[1725447432331,0.41828,2390.9,2390.8,0.41828]
[1725447432531,0.41829,2390.8,2390.7,0.41829]
[1725447433939,0.3804,2391.0,2390.9,0.41827]
[1725447434229,0.79865,2391.0,2390.9,0.41827]
[1725447435822,0.3804,2391.0,2390.9,0.41827]
[1725447436435,0.79865,2391.0,2390.9,0.41827]
[1725447436732,0.41828,2390.9,2390.8,0.41827]
[1725447436930,0.3804,2391.0,2390.6,1.40449]
[1725447437136,0.79866,2391.0,2390.9,0.41827]
[1725447437926,0.3804,2391.0,2390.9,0.41827]
[1725447438129,0.00627117,2391.1,2391.0,1.46388]
[1725447438726,0.00627117,2391.1,2391.0,5.05248]
[1725447438927,0.209,2391.7,2391.6,0.41815]
[1725447439124,0.41813,2391.7,2391.6,0.41815]
[1725447439728,0.41813,2391.7,2391.4,0.7692]
[1725447439729,0.79892,2391.8,2391.7,0.41813]
[1725447439930,0.3808,2391.8,2391.7,0.41813]
[1725447440125,0.79891,2391.8,2391.7,0.41813]
[1725447440335,0.3808,2391.8,2391.7,0.41813]
[1725447441538,0.79891,2391.8,2391.7,0.41813]
[1725447441736,0.41813,2391.7,2391.6,0.41813]
[1725447442735,0.79892,2391.8,2391.6,0.41813]
[1725447443342,0.41813,2391.7,2391.6,0.41813]
[1725447443941,0.79892,2391.8,2391.6,0.41813]
[1725447444344,0.41815,2391.6,2391.5,0.42443117]
[1725447444549,0.3808,2391.8,2391.5,0.42443117]
[1725447444750,0.41815,2391.6,2391.5,0.00627117]
[1725447444954,0.41815,2391.6,2391.5,0.42443117]
[1725447447048,1.46352,2391.6,2391.5,0.00627117]
[1725447447256,5.64512,2391.6,2391.5,0.00627117]
[1725447447549,0.41823,2391.1,2391.0,0.3548]
[1725447448745,0.41823,2391.1,2391.0,0.77305]
[1725447449650,0.7647,2391.2,2391.1,0.41823]
[1725447449651,1.18292,2391.2,2391.1,0.41823]
[1725447450558,3.99129,2391.4,2391.3,0.4182]
[1725447450759,4.34809,2391.4,2391.3,0.4182]
[1725447450955,8.52969,2391.4,2391.3,0.4182]
[1725447451848,0.7221,2391.4,2391.3,0.4182]
[1725447452054,1.14028,2391.4,2391.3,0.4182]
[1725447453060,0.7221,2391.4,2391.3,0.4182]
[1725447454156,1.14028,2391.4,2391.3,0.4182]
[1725447454363,0.3653,2391.4,2391.3,0.4182]
[1725447454858,0.41815,2391.6,2391.5,0.41816]
[1725447455065,1.15944,2391.7,2391.6,0.41815]
[1725447455456,5.34104,2391.7,2391.6,0.41815]
[1725447456459,0.41816,2391.5,2391.4,0.79868]
[1725447457461,0.41816,2391.5,2391.4,0.3805]
[1725447457660,4.67138,2391.5,2391.4,0.3805]
[1725447458460,4.67138,2391.5,2391.4,0.79868]
[1725447458964,0.41821,2391.3,2391.2,0.4182]
[1725447459155,0.41821,2391.3,2391.2,0.7802]
[1725447459359,0.41821,2391.3,2390.9,3.62]
[1725447459561,0.41824,2391.1,2391.0,0.41823]
[1725447459862,0.78963,2391.2,2391.1,0.41823]
[1725447460768,0.41824,2391.1,2391.0,0.41824]
[1725447460970,0.41825,2391.0,2390.9,0.78025]
[1725447461170,0.41825,2391.0,2390.9,0.362]
[1725447461959,0.41825,2391.0,2390.9,0.78027]
[1725447462565,0.41827,2390.9,2390.8,0.41827]
[1725447463458,0.77496,2391.0,2390.9,0.41827]
[1725447463665,0.41827,2390.9,2390.8,0.41828]
[1725447465063,0.3567,2391.0,2390.8,0.41827]
[1725447465064,0.41826,2391.0,2390.8,0.41827]
[1725447465270,0.41827,2390.9,2390.8,0.41827]
[1725447465768,0.41827,2390.9,2390.7,0.41829]
[1725447466165,0.41827,2390.9,2390.8,0.41829]
[1725447467771,0.41826,2391.0,2390.9,0.41826]
[1725447473872,1.04547,2391.4,2390.8,1.80581]
[1725447474169,1.04547,2391.4,2391.2,0.41821]
[1725447474170,0.41822,2391.3,2391.2,0.41821]
[1725447476375,0.41819,2391.4,2391.3,0.41819]
[1725447477569,4.00368,2391.5,2391.4,0.41818]
[1725447477971,4.00366,2391.5,2391.4,0.41818]
[1725447478478,0.79586,2391.5,2391.4,0.41818]
[1725447479973,0.41814,2391.7,2391.6,0.41813]
[1725447480270,0.41814,2391.7,2391.5,0.41815]
[1725447480271,0.41816,2391.6,2391.5,0.41815]
[1725447481190,0.41818,2391.5,2391.4,0.41817]
[1725447481484,1.04537,2391.6,2391.3,0.41819]
[1725447481485,0.41819,2391.4,2391.3,0.41819]
[1725447481782,0.41821,2391.3,2391.2,0.4182]
[1725447481977,0.79901,2391.3,2391.2,0.4182]
[1725447482373,0.3808,2391.3,2391.2,0.4182]
[1725447482574,0.41819,2391.4,2391.3,0.4182]
[1725447483474,0.41821,2391.3,2391.0,1.79512]
[1725447483672,0.3689,2391.5,2391.1,0.41822]
[1725447483673,0.80533,2391.2,2391.1,0.41822]
[1725447483880,0.41823,2391.1,2391.0,0.41824]
[1725447486880,1.18883,2391.2,2391.1,0.41823]
[1725447487077,0.80533,2391.2,2391.1,0.41823]
[1725447491087,0.41823,2391.1,2391.0,0.78364]
[1725447491878,0.41829,2390.8,2390.6,3.2078]
[1725447492191,0.41829,2390.8,2390.6,0.363]
[1725447492192,2.97407,2390.7,2390.6,0.363]
[1725447492490,0.41836,2390.4,2390.3,1.19186]
[1725447492690,0.41836,2390.4,2390.3,2.70186]
[1725447492889,0.41835,2390.5,2390.4,0.41835]
[1725447494183,0.80040117,2390.6,2390.5,0.41834]
[1725447494389,0.42460117,2390.6,2390.5,0.41834]
[1725447495579,0.00627117,2390.6,2390.5,1.46419]
[1725447495785,0.097,2390.9,2390.8,0.41829]
[1725447495986,0.80237,2391.0,2390.9,0.41827]
[1725447498791,0.42450117,2391.2,2390.9,1.04568]
[1725447498993,0.42450117,2391.2,2391.1,0.41823]
[1725447501293,0.41823,2391.1,2391.0,0.79025]
[1725447502893,1.04559,2391.1,2390.7,0.00627117]
[1725447503092,0.41828,2390.9,2390.7,0.00627117]
[1725447503299,0.41828,2390.9,2390.8,0.41827]
[1725447504798,1.78884,2391.0,2390.9,0.41827]
[1725447504799,1.16146,2391.0,2390.9,0.41827]
[1725447504999,0.41828,2390.9,2390.8,0.41828]
[1725447507191,1.16147,2391.0,2390.9,0.41827]
[1725447507796,0.80107,2391.0,2390.9,0.41827]
[1725447509704,3.99470117,2391.2,2391.1,0.41823]
[1725447510205,0.00627117,2391.2,2391.1,0.41823]
[1725447510596,0.00627117,2391.2,2391.1,0.78503]
[1725447510799,0.42449117,2391.2,2391.1,0.78503]
[1725447512402,1.47004117,2391.2,2391.1,0.3668]
[1725447512993,2.51559117,2391.2,2391.1,0.3668]
[1725447513192,2.51559117,2391.2,2390.7,0.42457117]
[1725447513193,0.41829,2390.8,2390.7,0.42457117]
[1725447513393,0.41829,2390.8,2390.7,0.77957117]
[1725447514407,3.62603,2391.1,2391.0,0.41825]
[1725447514609,0.00627117,2391.2,2391.1,0.41823]
[1725447514610,0.42449117,2391.2,2391.1,0.41823]
[1725447515201,0.42449117,2391.2,2391.1,0.77323]
[1725447520910,0.42449117,2391.2,2391.1,0.41823]
[1725447521208,0.00627117,2391.2,2391.1,0.41823]
[1725447521803,0.00627117,2391.2,2391.1,1.46382]
[1725447522309,0.00627117,2391.2,2391.1,4.67162]
[1725447522710,0.00627117,2391.2,2391.1,3.62603]
[1725447523504,0.00627117,2391.2,2391.1,12.47402]
[1725447523711,0.097,2391.5,2391.4,0.41818]
[1725447523898,1.16423,2391.7,2391.6,0.41815]
[1725447524808,3.53307117,2391.9,2391.6,7.8016]
[1725447525006,3.95117117,2391.9,2391.7,0.41811]
[1725447528915,0.41811,2391.8,2391.7,0.41811]
[1725447529511,3.95118117,2391.9,2391.7,0.41811]
[1725447529809,0.42438117,2391.9,2391.7,0.41811]
[1725447530709,0.00627117,2391.9,2391.7,0.41811]
[1725447530913,0.42438117,2391.9,2391.7,0.41811]
[1725447531621,0.41811,2391.8,2391.7,0.41811]
[1725447533508,0.41811,2391.8,2391.5,0.3832]